bitfinex/quotes_BTCUSD_20220202
["timestamp","ask_amount","ask_price","bid_price","bid_amount"]
[1643825673192,0.00486908,37458.0,37455.0,0.30960349]
[1643825673193,0.0004044,37457.0,37455.0,0.30960349]
[1643825673494,0.0004044,37457.0,37455.0,0.066746]
[1643825674093,0.04513092,37458.0,37455.0,0.066746]
[1643825674293,0.04553561,37458.0,37455.0,0.066746]
[1643825674498,0.04553561,37458.0,37455.0,0.133489]
[1643825675338,0.04553561,37458.0,37456.0,0.06674612]
[1643825675339,0.04513092,37458.0,37456.0,0.06674612]
[1643825675539,0.04569139,37458.0,37456.0,0.11674612]
[1643825675740,0.04569139,37458.0,37456.0,0.35891699]
[1643825676139,0.04569139,37458.0,37457.0,0.353787]
[1643825676543,0.04513092,37458.0,37457.0,0.407187]
[1643825676939,0.42052791,37459.0,37458.0,0.066739]
[1643825677144,0.42052791,37459.0,37458.0,0.120139]
[1643825677740,0.42,37459.0,37458.0,0.120139]
[1643825678795,0.42,37459.0,37458.0,0.0534]
[1643825679191,0.42,37459.0,37457.0,0.133477]
[1643825679593,0.42,37459.0,37454.0,0.133493]
[1643825679796,0.42,37459.0,37453.0,0.2192632]
[1643825680194,0.2314294,37457.0,37453.0,0.2192632]
[1643825680795,0.2314294,37457.0,37453.0,0.1692632]
[1643825681295,0.2314294,37457.0,37453.0,0.37389279]
[1643825681697,0.00055904,37457.0,37453.0,0.44064779]
[1643825681895,0.00542812,37457.0,37453.0,0.44064779]
[1643825682537,0.00486908,37457.0,37453.0,0.2360182]
[1643825682942,0.04568996,37457.0,37453.0,0.2360182]
[1643825683638,0.04513092,37457.0,37453.0,0.2360182]
[1643825684038,0.04568996,37457.0,37453.0,0.2360182]
[1643825684441,0.04568996,37457.0,37453.0,0.2860182]
[1643825684844,0.04513092,37457.0,37453.0,0.2860182]
[1643825685042,0.04513092,37457.0,37453.0,0.2192632]
[1643825685340,0.04513092,37457.0,37453.0,0.53075958]
[1643825685341,0.04568932,37457.0,37453.0,0.53075958]
[1643825685740,0.04568932,37457.0,37453.0,0.39725658]
[1643825685943,0.04568932,37457.0,37454.0,0.066751]
[1643825686191,0.04513092,37457.0,37454.0,0.066751]
[1643825686393,0.04567093,37457.0,37454.0,0.066751]
[1643825686793,0.04503399,37457.0,37454.0,0.066751]
[1643825687400,0.04449398,37457.0,37454.0,0.066751]
[1643825687595,0.04503399,37457.0,37454.0,0.066751]
[1643825688596,0.04449398,37457.0,37454.0,0.066751]
[1643825688797,0.04503524,37457.0,37454.0,0.066751]
[1643825689698,0.04449398,37457.0,37454.0,0.066751]
[1643825689949,0.04505363,37457.0,37454.0,0.066751]
[1643825690146,0.04505363,37457.0,37454.0,0.20025081]
[1643825691154,0.04449398,37457.0,37454.0,0.20025081]
[1643825691348,0.04505363,37457.0,37454.0,0.066751]
[1643825692150,0.04449398,37457.0,37454.0,0.066751]
[1643825692352,0.04490925,37457.0,37454.0,0.066751]
[1643825693349,0.04449398,37457.0,37454.0,0.066751]
[1643825693551,0.04490925,37457.0,37454.0,0.066751]
[1643825694596,0.04449398,37457.0,37454.0,0.066751]
[1643825694895,0.04490925,37457.0,37454.0,0.066751]
[1643825695693,0.04449398,37457.0,37454.0,0.066751]
[1643825696095,0.04508097,37457.0,37454.0,0.066751]
[1643825696295,0.65,37456.0,37453.0,0.2360132]
[1643825697298,0.65058699,37456.0,37453.0,0.1692602]
[1643825697538,0.65058699,37456.0,37454.0,0.066751]
[1643825698140,0.65,37456.0,37454.0,0.066751]
[1643825698738,1.09924726,37455.0,37454.0,0.066751]
[1643825699137,0.09924726,37455.0,37454.0,0.066751]
[1643825699338,0.04526039,37457.0,37454.0,0.066751]
[1643825699538,0.04508097,37457.0,37454.0,0.066751]
[1643825699738,0.00058699,37456.0,37454.0,0.066751]
[1643825700639,0.0446734,37457.0,37454.0,0.066751]
[1643825700840,0.0451865,37457.0,37454.0,0.066751]
[1643825701693,0.0446734,37457.0,37454.0,0.066751]
[1643825704393,0.04449398,37457.0,37454.0,0.066751]
[1643825704593,0.04507254,37457.0,37454.0,0.066751]
[1643825704793,0.04507254,37457.0,37454.0,0.116751]
[1643825705442,0.04449398,37457.0,37454.0,0.116751]
[1643825705737,0.04507254,37457.0,37454.0,0.116751]
[1643825706639,0.04449398,37457.0,37454.0,0.65006816]
[1643825706839,0.04507254,37457.0,37455.0,0.353801]
[1643825707040,0.04507254,37457.0,37456.0,0.96134062]
[1643825707238,0.04507254,37457.0,37456.0,1.56853562]
[1643825707439,0.04507254,37457.0,37456.0,2.20489291]
[1643825707639,0.00017942,37463.0,37459.0,0.066725]
[1643825707843,0.01940754,37468.0,37463.0,0.049735]
[1643825708046,0.12846957,37474.0,37465.0,1.799735]
[1643825708241,0.12846957,37474.0,37468.0,0.099735]
[1643825708242,0.00017977,37469.0,37468.0,0.099735]
[1643825708442,6.957e-05,37474.0,37469.0,0.0598]
[1643825708690,6.957e-05,37474.0,37472.0,0.7481]
[1643825708990,6.957e-05,37474.0,37473.0,1.380104]
[1643825709393,6.957e-05,37474.0,37473.0,1.56065884]
[1643825709790,6.957e-05,37474.0,37473.0,0.76065884]
[1643825709993,6.957e-05,37474.0,37473.0,0.66065884]
[1643825713142,6.957e-05,37474.0,37473.0,0.90537334]
[1643825713343,6.957e-05,37474.0,37473.0,2.28537334]
[1643825714140,0.0511,37475.0,37473.0,2.28537334]
[1643825714141,0.05168871,37475.0,37474.0,1.1]
[1643825714342,0.03730261,37475.0,37474.0,2.093394]
[1643825714541,0.03730261,37475.0,37474.0,2.44548243]
[1643825714739,0.03730261,37475.0,37474.0,2.67603727]
[1643825714938,0.00058871,37475.0,37474.0,2.67603727]
[1643825715138,0.0011,37476.0,37474.0,2.74273327]
[1643825715342,0.00168871,37476.0,37475.0,0.76882105]
[1643825715542,0.00168871,37476.0,37475.0,0.82862105]
[1643825716205,0.0011,37476.0,37475.0,0.82862105]
[1643825720039,0.0011,37476.0,37475.0,1.00917589]
[1643825723549,0.0001799,37477.0,37476.0,1.64494105]
[1643825723804,0.00077012,37477.0,37476.0,2.09851205]
[1643825724003,0.00077012,37477.0,37476.0,2.14851205]
[1643825724204,0.00059022,37477.0,37476.0,2.20191205]
[1643825724405,0.00059022,37477.0,37476.0,0.95191205]
[1643825724609,0.0367139,37478.0,37476.0,0.95191205]
[1643825724907,0.03730411,37478.0,37477.0,0.903561]
[1643825725104,0.03230411,37478.0,37477.0,0.506961]
[1643825725307,0.03230411,37478.0,37477.0,0.58751584]
[1643825725507,0.03230411,37478.0,37477.0,0.18055484]
[1643825725906,0.0317139,37478.0,37477.0,0.18055484]
[1643825726109,0.0001799,37479.0,37477.0,0.18055484]
[1643825726306,0.0193861,37480.0,37477.0,0.18055484]
[1643825726708,0.00059021,37479.0,37477.0,0.18055484]
[1643825726906,0.00077011,37479.0,37477.0,0.18055484]
[1643825727305,0.00077011,37479.0,37477.0,0.28055484]
[1643825727539,0.0001799,37479.0,37477.0,0.28055484]
[1643825727739,0.01990632,37480.0,37477.0,0.28055484]
[1643825728339,0.0193861,37480.0,37477.0,0.28041955]
[1643825728642,0.01990632,37480.0,37477.0,0.28041955]
[1643825728840,0.00162022,37480.0,37477.0,0.18055484]
[1643825729341,0.00180012,37480.0,37477.0,0.18055484]
[1643825729541,0.0012799,37480.0,37477.0,0.18055484]
[1643825729941,0.00180012,37480.0,37477.0,0.18055484]
[1643825730340,0.00180012,37480.0,37474.0,0.0357602]
[1643825730541,0.00180012,37480.0,37477.0,0.18055484]
[1643825730743,1.89990308,37478.0,37477.0,0.18055484]
[1643825731192,0.84490308,37478.0,37477.0,0.18055484]
[1643825731588,0.2747568,37479.0,37477.0,0.18055484]
[1643825732192,0.27528285,37479.0,37477.0,0.18055484]
[1643825733293,0.2747568,37479.0,37477.0,0.18055484]
[1643825734694,0.0001799,37479.0,37477.0,0.18055484]
[1643825734940,0.00162605,37480.0,37477.0,0.18055484]
[1643825734941,0.00180595,37480.0,37477.0,0.18055484]
[1643825735540,0.0012799,37480.0,37477.0,0.09027742]
[1643825735740,0.26579917,37480.0,37474.0,0.0357602]
[1643825735940,0.26579917,37480.0,37478.0,0.18055484]
[1643825736345,0.954056,37479.0,37478.0,0.18055484]
[1643825736841,0.354056,37479.0,37478.0,0.18055484]
[1643825737043,1.004056,37479.0,37478.0,0.18055484]
[1643825737240,0.354056,37479.0,37478.0,0.18055484]
[1643825737443,0.26542085,37480.0,37478.0,0.18055484]
[1643825737444,0.0012799,37480.0,37478.0,0.18055484]
[1643825738445,0.26242289,37480.0,37478.0,0.18055484]
[1643825740892,0.26242289,37480.0,37478.0,0.09027742]
[1643825741090,0.26242289,37480.0,37474.0,0.0357602]
[1643825741292,0.26242289,37480.0,37479.0,0.18055484]
[1643825741497,0.8,37479.0,37474.0,0.0357602]
[1643825741693,0.22318911,37478.0,37474.0,0.0357602]
[1643825742092,0.0001799,37478.0,37474.0,0.0357602]
[1643825742438,0.02864265,37479.0,37474.0,0.0357602]
[1643825742641,0.49674092,37480.0,37474.0,0.0357602]
[1643825743241,0.00262718,37478.0,37474.0,0.0357602]
[1643825743642,0.354056,37477.0,37474.0,0.0357602]
[1643825743842,0.2648737,37476.0,37474.0,0.0357602]
[1643825744242,0.00262718,37478.0,37474.0,0.0357602]
[1643825747899,0.00262718,37478.0,37474.0,0.1024743]
[1643825748196,0.00262718,37478.0,37474.0,0.1524743]
[1643825748397,0.00352105,37478.0,37474.0,0.1524743]
[1643825749000,0.00352105,37478.0,37475.0,0.353583]
[1643825749206,0.00352105,37478.0,37476.0,0.233418]
[1643825749400,0.00352105,37478.0,37477.0,0.353561]
[1643825749599,0.00352105,37478.0,37477.0,0.406961]
[1643825749803,0.00352105,37478.0,37477.0,0.506961]
[1643825750257,0.0011,37480.0,37477.0,0.506961]
[1643825750459,0.0011,37480.0,37478.0,0.353549]
[1643825750666,0.001,37484.0,37483.0,0.01560931]
[1643825750862,0.001,37484.0,37483.0,1.03579731]
[1643825751056,0.001,37484.0,37483.0,0.43579731]
[1643825751257,0.001,37484.0,37483.0,1.00533532]
[1643825751466,0.001,37484.0,37483.0,1.13872932]
[1643825751657,0.001,37484.0,37483.0,1.45601792]
[1643825752459,0.001,37484.0,37483.0,0.56919131]
[1643825752661,0.001,37484.0,37483.0,0.01560931]
[1643825753704,0.001,37484.0,37481.0,0.0142398]
[1643825753905,0.354056,37483.0,37481.0,0.0142398]
[1643825754205,0.354056,37483.0,37480.0,0.0357602]
[1643825754507,0.001,37484.0,37480.0,0.0357602]
[1643825754703,0.001,37484.0,37482.0,0.21851792]
[1643825754902,0.001,37484.0,37482.0,0.35191392]
[1643825755206,0.00056827,37483.0,37482.0,0.35191392]
[1643825756003,0.001,37484.0,37482.0,0.133396]
[1643825756405,0.00154437,37484.0,37482.0,0.133396]
[1643825756905,0.00154437,37484.0,37483.0,0.2222266]
[1643825757306,0.001,37484.0,37483.0,0.2889236]
[1643825757742,0.001,37484.0,37483.0,0.066697]
[1643825757942,0.001,37484.0,37482.0,0.133396]
[1643825758341,0.001,37484.0,37480.0,0.2358652]
[1643825758544,0.00117987,37484.0,37480.0,0.2358652]
[1643825758743,0.00117987,37484.0,37480.0,0.25706424]
[1643825758942,0.00117987,37484.0,37480.0,0.0357602]
[1643825759543,0.00117987,37484.0,37481.0,0.066707]
[1643825759749,0.00155479,37484.0,37481.0,0.066707]
[1643825760044,0.00155479,37484.0,37481.0,0.34582575]
[1643825760243,0.00137492,37484.0,37481.0,0.066707]
[1643825760444,0.00137492,37484.0,37480.0,0.1524672]
[1643825760847,0.001,37484.0,37480.0,0.1524672]
[1643825761288,0.00137631,37484.0,37480.0,0.1524672]
[1643825761495,0.00137631,37484.0,37480.0,0.2858692]
[1643825761496,0.00155618,37484.0,37480.0,0.2858692]
[1643825762090,0.00117987,37484.0,37480.0,0.2858692]
[1643825762296,0.00155618,37484.0,37480.0,0.2858692]
[1643825762492,0.00155618,37484.0,37480.0,0.1524672]
[1643825762688,0.00137631,37484.0,37480.0,0.1524672]
[1643825763289,0.001,37484.0,37480.0,0.1524672]
[1643825763488,0.00155205,37484.0,37480.0,0.1524672]
[1643825763890,0.00155205,37484.0,37480.0,0.1024672]
[1643825764489,0.001,37484.0,37480.0,0.1024672]
[1643825764691,0.00156495,37484.0,37480.0,0.1024672]
[1643825765546,0.22087739,37483.0,37480.0,0.0357602]
[1643825765749,0.22105726,37483.0,37480.0,0.0357602]
[1643825765947,0.354056,37482.0,37480.0,0.0357602]
[1643825766350,0.35423587,37482.0,37480.0,0.0357602]
[1643825766548,1.604056,37481.0,37480.0,0.0357602]
[1643825766748,0.03897713,37479.0,37476.0,0.42888225]
[1643825766948,0.80017987,37480.0,37478.0,0.05]
[1643825767351,1.204056,37479.0,37478.0,0.05]
[1643825767848,0.354056,37479.0,37477.0,0.00056504]
[1643825768050,0.00017987,37482.0,37476.0,0.44609799]
[1643825768249,0.56038983,37483.0,37477.0,0.00055059]
[1643825768791,0.22160776,37483.0,37477.0,0.00055059]
[1643825768991,0.53225376,37478.0,37477.0,0.05055059]
[1643825769193,0.53225376,37478.0,37477.0,0.05]
[1643825769394,0.93630976,37478.0,37477.0,0.05055059]
[1643825769793,2.03630976,37478.0,37477.0,0.05055059]
[1643825769993,2.03630976,37478.0,37477.0,0.00055059]
[1643825770198,2.39134851,37478.0,37477.0,0.00055059]
[1643825770393,2.39134851,37478.0,37470.0,0.133444]
[1643825770596,0.24563695,37475.0,37470.0,0.133444]
[1643825770794,1.68225376,37478.0,37476.0,0.00055059]
[1643825770995,1.554056,37477.0,37476.0,0.00055059]
[1643825771696,1.81992933,37477.0,37472.0,0.066724]
[1643825771896,1.25,37477.0,37475.0,0.0005379]
[1643825772096,1.404056,37476.0,37475.0,0.0005379]
[1643825772942,1.63909088,37476.0,37472.0,0.066724]
[1643825773140,1.63909088,37476.0,37474.0,0.0505379]
[1643825773340,1.28503488,37476.0,37474.0,0.0005379]
[1643825774142,1.28503488,37476.0,37471.0,0.05]
[1643825774341,1.05,37476.0,37473.0,0.00053791]
[1643825775347,0.05,37477.0,37473.0,0.29228731]
[1643825775545,0.05,37477.0,37473.0,0.2928278]
[1643825775745,0.05,37477.0,37474.0,0.05]
[1643825776389,0.08773589,37474.0,37473.0,0.06672]
[1643825779200,0.13773589,37474.0,37472.0,0.00056472]
[1643825779400,2.054056,37473.0,37472.0,0.00056472]
[1643825779598,2.30530164,37473.0,37472.0,0.00056472]
[1643825779797,2.107456,37473.0,37472.0,0.00056472]
[1643825780047,2.207456,37473.0,37470.0,0.05]
[1643825780247,0.404056,37472.0,37470.0,0.05]
[1643825780448,1.704056,37471.0,37470.0,0.05]
[1643825780656,0.354056,37471.0,37470.0,0.05]
[1643825780848,0.05,37472.0,37469.0,0.066727]
[1643825781050,0.1,37476.0,37469.0,0.29490393]
[1643825781348,0.354056,37475.0,37469.0,0.29490393]
[1643825781548,0.05,37476.0,37469.0,0.29490393]
[1643825781748,0.354056,37475.0,37469.0,0.066727]
[1643825781947,0.71458658,37475.0,37470.0,0.116726]
[1643825782148,0.354056,37474.0,37471.0,0.30685816]
[1643825782647,0.354056,37474.0,37471.0,0.52830358]
[1643825782851,0.05,37475.0,37471.0,0.52830358]
[1643825783055,0.05,37475.0,37471.0,0.59502858]
[1643825783252,0.05,37475.0,37472.0,0.41059422]
[1643825783448,0.05,37475.0,37473.0,0.066714]
[1643825784300,0.05,37475.0,37474.0,0.066714]
[1643825784499,0.05,37475.0,37474.0,1.416714]
[1643825784698,0.05,37475.0,37474.0,0.066714]
[1643825785100,0.00017987,37480.0,37475.0,0.066717]
[1643825785599,0.46547204,37481.0,37475.0,0.066717]
[1643825786101,0.08537898,37479.0,37475.0,0.066717]
[1643825786299,0.08537898,37479.0,37476.0,0.00054963]
[1643825786899,0.08537898,37479.0,37475.0,0.11669663]
[1643825786900,0.9,37478.0,37475.0,0.11669663]
[1643825788161,0.22612107,37479.0,37475.0,0.11669663]
[1643825788369,0.05,37480.0,37476.0,0.26335386]
[1643825788561,0.05,37480.0,37476.0,0.58359586]
[1643825788761,0.05,37480.0,37477.0,0.403567]
[1643825788959,0.05,37480.0,37478.0,0.70981119]
[1643825789159,0.05,37480.0,37479.0,1.34058838]
[1643825789363,0.05,37480.0,37479.0,1.95097827]
[1643825789959,0.00017987,37483.0,37479.0,1.95097827]
[1643825790161,0.001,37484.0,37480.0,0.486922]
[1643825790360,0.001,37484.0,37480.0,0.51803558]
[1643825790562,0.001,37484.0,37481.0,0.890369]
[1643825790764,0.001,37484.0,37482.0,0.353504]
[1643825791191,0.00117987,37484.0,37482.0,0.353504]
[1643825791391,0.00175532,37484.0,37483.0,0.89152525]
[1643825791591,0.00175532,37484.0,37483.0,1.24501825]
[1643825791790,0.00157545,37484.0,37483.0,1.29501825]
[1643825792191,0.001,37484.0,37483.0,1.29501825]
[1643825792391,0.001,37484.0,37483.0,1.4151045]
[1643825792792,0.001,37484.0,37483.0,1.5151045]
[1643825799599,0.001,37484.0,37483.0,1.4151045]
[1643825799804,0.001,37484.0,37483.0,0.7151045]
[1643825800001,0.001,37484.0,37482.0,0.20006798]
[1643825800202,0.00117987,37484.0,37482.0,0.066695]
[1643825800803,0.00117987,37484.0,37481.0,0.25006]
[1643825801001,0.00117987,37484.0,37481.0,0.05]
[1643825802203,0.00177038,37484.0,37481.0,0.05]
[1643825802444,0.354056,37483.0,37481.0,0.05]
[1643825802646,1.77833744,37482.0,37481.0,0.05]
[1643825802844,2.13239344,37482.0,37478.0,0.133421]
[1643825803046,0.22960438,37481.0,37478.0,0.133421]
[1643825803245,0.22581367,37481.0,37478.0,0.133421]
[1643825803445,1.55,37482.0,37478.0,0.133421]
[1643825803647,1.55,37482.0,37478.0,0.43898043]
[1643825803849,1.55,37482.0,37479.0,0.066711]
[1643825804449,1.55055515,37482.0,37479.0,0.066711]
[1643825805449,1.55055515,37482.0,37479.0,0.133421]
[1643825805450,1.55,37482.0,37479.0,0.133421]
[1643825805850,1.55055515,37482.0,37479.0,0.133421]
[1643825806052,0.22558054,37481.0,37478.0,0.183421]
[1643825806304,1.55055515,37482.0,37478.0,0.05]
[1643825806305,0.354056,37480.0,37478.0,0.05]
[1643825806503,0.354056,37481.0,37477.0,0.04985389]
[1643825806708,0.25648424,37480.0,37477.0,0.04985389]
[1643825806905,0.354056,37479.0,37477.0,0.04985389]
[1643825807106,0.90619081,37479.0,37477.0,0.04985389]
[1643825807301,1.84729184,37478.0,37477.0,0.04985389]
[1643825807900,1.84729184,37478.0,37475.0,0.00014611]
[1643825808101,0.354056,37477.0,37475.0,0.00014611]
[1643825808404,0.77640734,37476.0,37475.0,0.00014611]
[1643825808603,0.55,37476.0,37475.0,0.06686911]
[1643825809000,0.55,37476.0,37475.0,0.066723]
[1643825810247,0.64887067,37476.0,37475.0,0.066723]
[1643825810847,0.55,37476.0,37475.0,0.066723]
[1643825811151,0.25124564,37476.0,37474.0,0.00058727]
[1643825811350,2.054056,37475.0,37474.0,0.00058727]
[1643825811551,2.054056,37475.0,37473.0,0.04985389]
[1643825811746,0.0598,37478.0,37473.0,0.04985389]
[1643825811747,1.804056,37474.0,37473.0,0.04985389]
[1643825811952,1.804056,37474.0,37467.0,0.133451]
[1643825811953,1.804056,37474.0,37471.0,0.00014611]
[1643825812150,0.22232546,37479.0,37473.0,0.00058727]
[1643825812151,0.0984434,37475.0,37473.0,0.00058727]
[1643825812346,0.754056,37474.0,37473.0,0.00058727]
[1643825812749,0.354056,37474.0,37471.0,0.00014611]
[1643825812948,0.05,37475.0,37472.0,0.0005873]
[1643825813351,0.354056,37474.0,37472.0,0.0005873]
[1643825813804,2.30974325,37474.0,37472.0,0.0005873]
[1643825813995,1.854056,37473.0,37470.0,0.04985389]
[1643825814198,0.354056,37472.0,37471.0,0.00054308]
[1643825814396,0.27097172,37475.0,37471.0,0.00054308]
[1643825814601,0.1,37475.0,37471.0,0.00054308]
[1643825814799,0.05,37475.0,37471.0,0.00054308]
[1643825815198,0.05,37475.0,37470.0,0.32905793]
[1643825815598,0.05,37475.0,37471.0,0.00054308]
[1643825816401,0.05,37475.0,37472.0,0.2298725]
[1643825816598,0.05,37475.0,37472.0,0.2965965]
[1643825817750,0.05,37475.0,37472.0,0.29714117]
[1643825818753,0.05,37475.0,37472.0,0.2965965]
[1643825818952,0.05,37475.0,37472.0,0.29714117]
[1643825819757,0.05,37475.0,37472.0,0.34714117]
[1643825820054,0.05,37475.0,37472.0,0.3465965]
[1643825820655,2.66327816,37475.0,37470.0,0.09985389]
[1643825820858,0.454056,37474.0,37470.0,0.04985389]
[1643825821057,0.354056,37473.0,37470.0,0.04985389]
[1643825821303,0.1,37472.0,37470.0,0.04485389]
[1643825821496,0.1,37472.0,37471.0,0.00055045]
[1643825821698,1.05353894,37472.0,37471.0,0.00055045]
[1643825822100,1.80353894,37472.0,37471.0,0.00055045]
[1643825822498,1.80353894,37472.0,37470.0,0.04485389]
[1643825822697,1.454056,37471.0,37470.0,0.04540436]
[1643825823097,1.554056,37471.0,37470.0,0.04540436]
[1643825823500,0.354056,37471.0,37470.0,0.04540436]
[1643825823698,0.354056,37471.0,37470.0,0.04485389]
[1643825824298,0.354056,37471.0,37469.0,0.00055048]
[1643825824502,0.05,37472.0,37469.0,0.00055048]
[1643825824697,0.27670199,37474.0,37469.0,0.00055048]
[1643825824698,0.354056,37471.0,37469.0,0.00055048]
[1643825824952,0.354056,37471.0,37468.0,0.00514611]
[1643825824953,0.354056,37472.0,37468.0,0.066736]
[1643825825154,0.404056,37472.0,37468.0,0.06727809]
[1643825825350,0.354056,37471.0,37468.0,0.06727809]
[1643825826153,0.354056,37471.0,37468.0,0.0672781]
[1643825826754,0.05,37475.0,37468.0,0.30216326]
[1643825827151,0.05,37475.0,37468.0,0.30162116]
[1643825827557,0.38892188,37479.0,37475.0,0.28453106]
[1643825827753,0.354056,37478.0,37475.0,0.35125506]
[1643825827952,0.354056,37479.0,37475.0,0.35640117]
[1643825828354,0.354056,37479.0,37475.0,0.40640117]
[1643825828557,0.05056482,37480.0,37476.0,0.29042379]
[1643825828805,0.05056482,37480.0,37476.0,0.62398379]
[1643825828806,0.0505785,37480.0,37476.0,0.62398379]
[1643825829004,0.0505785,37480.0,37478.0,0.42444276]
[1643825829210,0.0505785,37480.0,37479.0,2.43269848]
[1643825829605,0.04494216,37480.0,37479.0,2.13657029]
[1643825829805,0.04494216,37480.0,37479.0,2.18657029]
[1643825830208,0.00041438,37481.0,37479.0,2.18657029]
[1643825830402,0.00041438,37481.0,37480.0,1.453527]
[1643825830601,0.00041438,37481.0,37480.0,1.506927]
[1643825830806,0.00505784,37482.0,37480.0,0.456927]
[1643825831005,0.00505784,37482.0,37481.0,0.803516]
[1643825831203,0.00547337,37482.0,37481.0,0.856916]
[1643825831404,0.00547337,37482.0,37481.0,0.6591367]
[1643825831704,0.00547337,37482.0,37481.0,0.406916]
[1643825832103,0.04494216,37483.0,37481.0,0.406916]
[1643825832302,0.04494216,37483.0,37482.0,0.353505]
[1643825832552,0.04494216,37483.0,37482.0,0.406905]
[1643825832553,0.04549932,37483.0,37482.0,0.406905]
[1643825832852,0.00055716,37483.0,37482.0,0.406905]
[1643825833049,0.00055716,37483.0,37482.0,0.956905]
[1643825833649,0.00155715,37484.0,37482.0,1.19397249]
[1643825833848,0.00155715,37484.0,37483.0,1.570193]
[1643825834053,0.00667918,37489.0,37484.0,0.133396]
[1643825834251,0.45018006,37488.0,37487.0,0.24315218]
[1643825834449,0.45018006,37488.0,37484.0,0.066698]
[1643825834852,0.50018006,37488.0,37483.0,0.1034]
[1643825835054,0.50018006,37488.0,37484.0,0.066703]
[1643825835254,0.50018006,37488.0,37485.0,0.2362567]
[1643825835457,0.50018006,37488.0,37485.0,0.49998112]
[1643825835654,0.50018006,37488.0,37485.0,0.54998112]
[1643825836053,0.05018006,37488.0,37486.0,0.0667]
[1643825837196,0.05018006,37488.0,37486.0,0.1334]
[1643825840049,0.05018006,37488.0,37486.0,0.0667]
[1643825840653,0.05018006,37488.0,37486.0,0.0417]
[1643825841453,0.00231989,37489.0,37486.0,0.0417]
[1643825841851,0.00173109,37489.0,37486.0,0.0417]
[1643825842050,0.00231989,37489.0,37486.0,0.0417]
[1643825842758,0.00231989,37489.0,37485.0,0.04485389]
[1643825842759,0.66272281,37488.0,37485.0,0.04485389]
[1643825842953,0.59116547,37487.0,37485.0,0.04485389]
[1643825843157,1.954056,37486.0,37485.0,0.04485389]
[1643825843351,1.949056,37486.0,37485.0,0.04485389]
[1643825843799,2.33722232,37486.0,37485.0,0.04485389]
[1643825844000,2.33722232,37486.0,37483.0,0.00514611]
[1643825844302,0.354056,37485.0,37483.0,0.00514611]
[1643825844899,0.354056,37485.0,37482.0,0.04485389]
[1643825848553,0.05037865,37486.0,37482.0,0.04485389]
[1643825848955,0.05,37486.0,37482.0,0.04485389]
[1643825849455,0.353973,37485.0,37482.0,0.04485389]
[1643825849856,0.05037866,37486.0,37483.0,0.066708]
[1643825850058,0.353973,37485.0,37483.0,0.116708]
[1643825850456,0.05055635,37486.0,37483.0,0.116708]
[1643825851304,0.05,37486.0,37483.0,0.116708]
[1643825851707,0.05055635,37486.0,37483.0,0.116708]
[1643825852104,0.00037973,37486.0,37483.0,0.116708]
[1643825852504,0.00018026,37488.0,37483.0,0.116708]
[1643825852705,0.353973,37487.0,37483.0,0.116708]
[1643825852906,0.05,37487.0,37483.0,0.116708]
[1643825853708,0.05018025,37487.0,37483.0,0.116708]
[1643825853908,0.05018025,37487.0,37485.0,0.23222109]
[1643825854211,0.05018025,37487.0,37485.0,0.34892009]
[1643825854412,0.05,37487.0,37485.0,0.34892009]
[1643825855257,0.05,37487.0,37485.0,0.116699]
[1643825856654,0.05018025,37487.0,37485.0,0.116699]
[1643825856955,0.353973,37486.0,37485.0,0.05]
[1643825857355,0.05018025,37487.0,37484.0,0.066705]
[1643825857555,0.05,37487.0,37484.0,0.066705]
[1643825858255,0.05018025,37487.0,37484.0,0.066705]
[1643825858904,0.05018025,37487.0,37483.0,0.05]
[1643825858905,0.353973,37486.0,37483.0,0.05]
[1643825860106,0.67318169,37486.0,37483.0,0.05]
[1643825860305,0.353973,37485.0,37483.0,0.05]
[1643825860509,0.31920869,37486.0,37483.0,0.05]
[1643825860706,0.353973,37485.0,37483.0,0.05]
[1643825863554,0.05018025,37487.0,37483.0,0.116707]
[1643825863756,0.05,37487.0,37483.0,0.116707]
[1643825864354,0.05018025,37487.0,37483.0,0.116707]
[1643825864955,0.05,37487.0,37483.0,0.116707]
[1643825865555,0.02761957,37487.0,37483.0,0.116707]
[1643825866199,0.02743932,37487.0,37483.0,0.116707]
[1643825866606,0.00243932,37487.0,37483.0,0.116707]
[1643825867001,0.04774093,37488.0,37483.0,0.116707]
[1643825867200,0.04756068,37488.0,37483.0,0.116707]
[1643825867901,0.04774093,37488.0,37483.0,0.116707]
[1643825868301,0.04774093,37488.0,37483.0,0.3473662]
[1643825868501,0.04833548,37488.0,37484.0,0.066698]
[1643825868704,0.04833548,37488.0,37485.0,0.35172147]
[1643825868903,0.04833548,37488.0,37486.0,0.0534]
[1643825869303,0.04774093,37488.0,37486.0,0.0534]
[1643825870354,0.04774093,37488.0,37486.0,0.120091]
[1643825870954,0.00018025,37488.0,37486.0,0.120091]
[1643825871156,0.00232007,37489.0,37486.0,0.120091]
[1643825871657,2.34659974,37487.0,37486.0,0.120091]
[1643825872053,0.00018025,37488.0,37486.0,0.120091]
[1643825872253,0.02750032,37489.0,37486.0,0.120091]
[1643825872454,0.02750032,37489.0,37487.0,0.35123964]
[1643825872654,0.02750032,37489.0,37487.0,0.40123964]
[1643825872857,0.02750032,37489.0,37488.0,0.0534]
[1643825873053,0.02249968,37491.0,37488.0,0.0534]
[1643825873908,0.25021704,37492.0,37488.0,0.0534]
[1643825876415,0.02750032,37492.0,37488.0,0.0534]
[1643825876614,0.02750032,37492.0,37488.0,0.120092]
[1643825876818,0.02809624,37492.0,37488.0,0.120092]
[1643825877854,0.02750032,37492.0,37488.0,0.120092]
[1643825878055,0.02809624,37492.0,37488.0,0.120092]
[1643825878861,0.02809624,37492.0,37488.0,4.120092]
[1643825879056,0.02750032,37492.0,37488.0,4.120092]
[1643825879256,0.02808414,37492.0,37488.0,4.120092]
[1643825880260,0.02750032,37492.0,37488.0,4.120092]
[1643825880459,0.02808414,37492.0,37488.0,4.120092]
[1643825881317,0.02750032,37492.0,37488.0,4.0534]
[1643825881520,0.02750032,37492.0,37488.0,4.0]
[1643825881521,0.23518205,37490.0,37488.0,4.0]
[1643825882517,1.84015338,37489.0,37488.0,4.11202352]
[1643825882719,2.29412638,37489.0,37488.0,3.91677738]
[1643825882923,2.29412638,37489.0,37487.0,0.04485389]
[1643825883123,2.29412638,37489.0,37472.0,0.133436]
[1643825883124,1.75,37486.0,37472.0,0.133436]